[Event "December 5 Late 2023"]
[Site "https://www.chess.com"]
[Date "2023.12.05"]
[Round "6"]
[White "Keller, Peter"]
[Black "Lopusiewicz, Piotr"]
[Result "0-1"]
[Board "120"]
[TimeControl "180+1"]
[WhiteFideId "1272105"]
[BlackFideId "1116029"]
[WhiteElo "2197"]
[BlackElo "2416"]
[WhiteTeam "GER"]
[BlackTeam "POL"]
[WhiteClock "0:00:00"]
[BlackClock "0:00:08"]

1. d4 {[%clk 0:03:00]}  Nf6 {[%clk 0:02:59]} 2. Bf4 {[%clk 0:03:01]}  d5 {[%clk 0:02:59]} 3. e3 {[%clk 0:03:01]}  c5 {[%clk 0:02:59]} 4. c3 {[%clk 0:03:01]}  Nc6 {[%clk 0:03:00]} 5. Nd2 {[%clk 0:03:01]}  Bf5 {[%clk 0:02:55]} 6. Ngf3 {[%clk 0:02:57]}  e6 {[%clk 0:02:49]} 7. Bb5 {[%clk 0:02:50]}  Qb6 {[%clk 0:02:33]} 8. a4 {[%clk 0:02:20]}  a6 {[%clk 0:02:31]} 9. Be2 {[%clk 0:02:16]}  Qxb2 {[%clk 0:02:24]} 10. O-O {[%clk 0:02:16]}  Qxc3 {[%clk 0:02:18]} 11. Rc1 {[%clk 0:02:10]}  Qb4 {[%clk 0:02:01]} 12. Nh4 {[%clk 0:02:02]}  c4 {[%clk 0:01:58]} 13. Nxf5 {[%clk 0:02:00]}  exf5 {[%clk 0:01:58]} 14. Rb1 {[%clk 0:02:00]}  Qe7 {[%clk 0:01:52]} 15. Bxc4 {[%clk 0:01:41]}  dxc4 {[%clk 0:01:49]} 16. Nxc4 {[%clk 0:01:42]}  Qd8 {[%clk 0:01:27]} 17. Rxb7 {[%clk 0:01:05]}  Nd5 {[%clk 0:01:26]} 18. Qf3 {[%clk 0:00:50]}  Be7 {[%clk 0:01:22]} 19. Nb6 {[%clk 0:00:42]}  Ncb4 {[%clk 0:01:10]} 20. Nxd5 {[%clk 0:00:09]}  Qxd5 {[%clk 0:00:59]} 21. Rc1 {[%clk 0:00:04]}  Qxf3 {[%clk 0:00:55]} 22. gxf3 {[%clk 0:00:05]}  Nd5 {[%clk 0:00:41]} 23. Be5 {[%clk 0:00:03]}  f6 {[%clk 0:00:38]} 24. Bg3 {[%clk 0:00:01]}  f4 {[%clk 0:00:38]} 25. e4 {[%clk 0:00:01]}  fxg3 {[%clk 0:00:31]} 26. exd5 {[%clk 0:00:02]}  gxf2+ {[%clk 0:00:17]} 27. Kxf2 {[%clk 0:00:02]}  Rf8 {[%clk 0:00:11]} 28. Re1 {[%clk 0:00:02]}  Rf7 {[%clk 0:00:11]} 29. d6 {[%clk 0:00:02]}  Rd8 {[%clk 0:00:10]} 30. dxe7 {[%clk 0:00:02]}  Rc8 {[%clk 0:00:08]} 31. d5 {[%clk 0:00:01]}  Rc2+ {[%clk 0:00:08]} 32. Kg3 {[%clk 0:00:00]}  Rd2 {[%clk 0:00:08]} 0-1

[Event "December 5 Late 2023"]
[Site "https://www.chess.com"]
[Date "2023.12.05"]
[Round "6"]
[White "Dmitriev, Sergey"]
[Black "Bochnicka, Vladimir"]
[Result "0-1"]
[Board "123"]
[TimeControl "180+1"]
[WhiteFideId "14101785"]
[BlackFideId "14943450"]
[WhiteElo "1984"]
[BlackElo "2409"]
[WhiteTeam "UKR"]
[BlackTeam "SVK"]
[WhiteClock "0:02:22"]
[BlackClock "0:02:20"]

1. e4 {[%clk 0:03:00]}  e5 {[%clk 0:02:59]} 2. Nf3 {[%clk 0:03:00]}  Nc6 {[%clk 0:03:00]} 3. Bc4 {[%clk 0:02:56]}  Nf6 {[%clk 0:02:59]} 4. d3 {[%clk 0:02:55]}  a5 {[%clk 0:02:58]} 5. a4 {[%clk 0:02:54]}  Bc5 {[%clk 0:02:58]} 6. O-O {[%clk 0:02:51]}  O-O {[%clk 0:02:57]} 7. Bg5 {[%clk 0:02:49]}  h6 {[%clk 0:02:56]} 8. Bh4 {[%clk 0:02:49]}  d6 {[%clk 0:02:56]} 9. c3 {[%clk 0:02:48]}  Be6 {[%clk 0:02:50]} 10. Bb5 {[%clk 0:02:45]}  g5 {[%clk 0:02:40]} 11. Bg3 {[%clk 0:02:44]}  Ne7 {[%clk 0:02:39]} 12. d4 {[%clk 0:02:38]}  Bb6 {[%clk 0:02:25]} 13. dxe5 {[%clk 0:02:38]}  Nxe4 {[%clk 0:02:24]} 14. exd6 {[%clk 0:02:35]}  cxd6 {[%clk 0:02:20]} 15. Qxd6 {[%clk 0:02:22]}  Nxd6 {[%clk 0:02:20]} 0-1

[Event "December 5 Late 2023"]
[Site "https://www.chess.com"]
[Date "2023.12.05"]
[Round "6"]
[White "Titus, Andrew"]
[Black "Mangialardo, Tiago Carvalho"]
[Result "1-0"]
[Board "124"]
[TimeControl "180+1"]
[WhiteFideId "2059770"]
[BlackFideId "2130718"]
[WhiteElo "2585"]
[BlackElo "2107"]
[WhiteTeam "USA"]
[BlackTeam "BRA"]
[WhiteClock "0:00:03"]
[BlackClock "0:00:03"]

1. e4 {[%clk 0:03:00]}  Nf6 {[%clk 0:03:00]} 2. e5 {[%clk 0:03:00]}  Nd5 {[%clk 0:02:59]} 3. d4 {[%clk 0:03:01]}  d6 {[%clk 0:03:00]} 4. Nf3 {[%clk 0:02:53]}  Nc6 {[%clk 0:02:57]} 5. h3 {[%clk 0:02:45]}  Nb6 {[%clk 0:02:51]} 6. exd6 {[%clk 0:02:37]}  exd6 {[%clk 0:02:51]} 7. Be2 {[%clk 0:02:36]}  Be7 {[%clk 0:02:51]} 8. O-O {[%clk 0:02:21]}  O-O {[%clk 0:02:51]} 9. a4 {[%clk 0:01:57]}  a5 {[%clk 0:02:42]} 10. d5 {[%clk 0:01:55]}  Ne5 {[%clk 0:02:42]} 11. Nxe5 {[%clk 0:01:54]}  dxe5 {[%clk 0:02:42]} 12. c4 {[%clk 0:01:53]}  Bf5 {[%clk 0:02:37]} 13. Nc3 {[%clk 0:01:47]}  Bb4 {[%clk 0:02:33]} 14. Be3 {[%clk 0:01:31]}  Nd7 {[%clk 0:02:02]} 15. f4 {[%clk 0:00:28]}  Bxc3 {[%clk 0:01:24]} 16. bxc3 {[%clk 0:00:26]}  exf4 {[%clk 0:01:19]} 17. Rxf4 {[%clk 0:00:18]}  Bg6 {[%clk 0:01:15]} 18. Bd4 {[%clk 0:00:18]}  Re8 {[%clk 0:01:13]} 19. Bh5 {[%clk 0:00:13]}  Qg5 {[%clk 0:01:05]} 20. Bxg6 {[%clk 0:00:11]}  Qxf4 {[%clk 0:01:01]} 21. Bd3 {[%clk 0:00:11]}  Ne5 {[%clk 0:00:55]} 22. Bf1 {[%clk 0:00:10]}  Ng6 {[%clk 0:00:42]} 23. Rb1 {[%clk 0:00:09]}  b6 {[%clk 0:00:41]} 24. Rb2 {[%clk 0:00:10]}  Re7 {[%clk 0:00:31]} 25. Rf2 {[%clk 0:00:10]}  Qe4 {[%clk 0:00:31]} 26. Kh2 {[%clk 0:00:07]}  Qe1 {[%clk 0:00:16]} 27. Qf3 {[%clk 0:00:07]}  Qe4 {[%clk 0:00:13]} 28. Qg3 {[%clk 0:00:05]}  Rae8 {[%clk 0:00:11]} 29. Bd3 {[%clk 0:00:05]}  Qh4 {[%clk 0:00:10]} 30. Qf3 {[%clk 0:00:05]}  f6 {[%clk 0:00:04]} 31. Bf5 {[%clk 0:00:05]}  Re1 {[%clk 0:00:03]} 32. Be6+ {[%clk 0:00:05]}  Kh8 {[%clk 0:00:03]} 33. Qg3 {[%clk 0:00:03]}  Qxg3+ {[%clk 0:00:03]} 34. Kxg3 {[%clk 0:00:04]}  Nf8 {[%clk 0:00:03]} 35. Bf7 {[%clk 0:00:02]}  R8e7 {[%clk 0:00:03]} 36. Rxf6 {[%clk 0:00:02]}  gxf6 {[%clk 0:00:03]} 37. Bxf6# {[%clk 0:00:03]} 1-0

[Event "December 5 Late 2023"]
[Site "https://www.chess.com"]
[Date "2023.12.05"]
[Round "6"]
[White "Gerbelli Neto, Eduardo"]
[Black "Kotyk, Michael"]
[Result "1-0"]
[Board "125"]
[TimeControl "180+1"]
[WhiteFideId "2103281"]
[BlackFideId "16214501"]
[WhiteElo "2323"]
[BlackElo "2496"]
[WhiteTeam "BRA"]
[BlackTeam "GER"]
[WhiteClock "0:00:12"]
[BlackClock "0:00:10"]

1. e4 {[%clk 0:03:00]}  Na6 {[%clk 0:03:00]} 2. d4 {[%clk 0:02:59]}  c6 {[%clk 0:03:01]} 3. Nc3 {[%clk 0:03:00]}  g6 {[%clk 0:03:01]} 4. Bd3 {[%clk 0:02:59]}  Nc7 {[%clk 0:03:01]} 5. Nf3 {[%clk 0:02:59]}  d5 {[%clk 0:03:01]} 6. e5 {[%clk 0:02:59]}  Bg7 {[%clk 0:03:02]} 7. h4 {[%clk 0:02:56]}  h5 {[%clk 0:03:02]} 8. Bg5 {[%clk 0:02:54]}  Nh6 {[%clk 0:03:02]} 9. Qd2 {[%clk 0:02:54]}  Bf5 {[%clk 0:03:01]} 10. Bxh6 {[%clk 0:02:45]}  Bxh6 {[%clk 0:02:58]} 11. Ng5 {[%clk 0:02:39]}  f6 {[%clk 0:02:53]} 12. exf6 {[%clk 0:02:39]}  exf6 {[%clk 0:02:53]} 13. Qe2+ {[%clk 0:02:40]}  Kd7 {[%clk 0:02:53]} 14. Nf7 {[%clk 0:02:24]}  Bxd3 {[%clk 0:02:53]} 15. cxd3 {[%clk 0:02:20]}  Qf8 {[%clk 0:02:19]} 16. Nxh8 {[%clk 0:02:18]}  Re8 {[%clk 0:02:19]} 17. Ne4 {[%clk 0:02:07]}  dxe4 {[%clk 0:01:52]} 18. Nxg6 {[%clk 0:01:56]}  Qb4+ {[%clk 0:01:35]} 19. Kf1 {[%clk 0:01:55]}  exd3 {[%clk 0:01:09]} 20. Qxd3 {[%clk 0:01:49]}  Qxb2 {[%clk 0:01:07]} 21. Rb1 {[%clk 0:01:36]}  Qxa2 {[%clk 0:00:56]} 22. Kg1 {[%clk 0:01:20]}  Re2 {[%clk 0:00:38]} 23. Qf5+ {[%clk 0:01:14]}  Kd6 {[%clk 0:00:35]} 24. Qxf6+ {[%clk 0:01:00]}  Ne6 {[%clk 0:00:35]} 25. Qe7+ {[%clk 0:00:53]}  Kd5 {[%clk 0:00:33]} 26. Qd7+ {[%clk 0:00:52]}  Ke4 {[%clk 0:00:27]} 27. Rf1 {[%clk 0:00:33]}  a5 {[%clk 0:00:26]} 28. Rh3 {[%clk 0:00:29]}  Qd5 {[%clk 0:00:20]} 29. Qxb7 {[%clk 0:00:24]}  Nxd4 {[%clk 0:00:13]} 30. Qe7+ {[%clk 0:00:21]}  Ne6 {[%clk 0:00:13]} 31. Qa3 {[%clk 0:00:16]}  Kf5 {[%clk 0:00:11]} 32. Ne7+ {[%clk 0:00:12]}  Ke5 {[%clk 0:00:10]} 33. Nxd5 {[%clk 0:00:13]}  cxd5 {[%clk 0:00:10]} 34. Qxa5 {[%clk 0:00:13]}  Nf4 {[%clk 0:00:09]} 35. Re3+ {[%clk 0:00:12]}  Rxe3 {[%clk 0:00:09]} 36. fxe3 {[%clk 0:00:13]}  Ne2+ {[%clk 0:00:09]} 37. Kf2 {[%clk 0:00:13]}  Kf5 {[%clk 0:00:07]} 38. Kxe2+ {[%clk 0:00:14]}  Kg4 {[%clk 0:00:08]} 39. Qxd5 {[%clk 0:00:13]}  Kg3 {[%clk 0:00:06]} 40. Qxh5 {[%clk 0:00:13]}  Bf4 {[%clk 0:00:05]} 41. Rxf4 {[%clk 0:00:11]}  Kh2 {[%clk 0:00:06]} 42. Qg4 {[%clk 0:00:11]}  Kg1 {[%clk 0:00:07]} 43. g3 {[%clk 0:00:11]}  Kh2 {[%clk 0:00:07]} 44. h5 {[%clk 0:00:11]}  Kg2 {[%clk 0:00:08]} 45. h6 {[%clk 0:00:12]}  Kg1 {[%clk 0:00:09]} 46. h7 {[%clk 0:00:13]}  Kg2 {[%clk 0:00:09]} 47. h8=Q {[%clk 0:00:13]}  Kg1 {[%clk 0:00:09]} 48. Rf1+ {[%clk 0:00:12]}  Kg2 {[%clk 0:00:10]} 49. Qhh3# {[%clk 0:00:12]} 1-0

[Event "December 5 Late 2023"]
[Site "https://www.chess.com"]
[Date "2023.12.05"]
[Round "6"]
[White "Travadon, Loic"]
[Black "Matrix3x3a"]
[Result "0-1"]
[Board "127"]
[TimeControl "180+1"]
[WhiteFideId "26092131"]
[WhiteElo "2153"]
[BlackElo "2432"]
[WhiteTeam "FRA"]
[WhiteClock "0:00:00"]
[BlackClock "0:01:01"]

1. e4 {[%clk 0:03:00]}  c5 {[%clk 0:02:59]} 2. Nf3 {[%clk 0:02:58]}  d6 {[%clk 0:02:59]} 3. d4 {[%clk 0:02:56]}  cxd4 {[%clk 0:03:00]} 4. Nxd4 {[%clk 0:02:57]}  Nf6 {[%clk 0:03:00]} 5. Nc3 {[%clk 0:02:55]}  a6 {[%clk 0:03:01]} 6. Be2 {[%clk 0:02:54]}  e5 {[%clk 0:03:01]} 7. Nb3 {[%clk 0:02:53]}  Be7 {[%clk 0:03:00]} 8. Be3 {[%clk 0:02:54]}  Be6 {[%clk 0:02:58]} 9. Nd5 {[%clk 0:02:52]}  Nbd7 {[%clk 0:02:57]} 10. Qd3 {[%clk 0:02:29]}  Bxd5 {[%clk 0:02:43]} 11. exd5 {[%clk 0:02:27]}  a5 {[%clk 0:02:43]} 12. a4 {[%clk 0:02:24]}  b6 {[%clk 0:02:42]} 13. O-O {[%clk 0:01:57]}  O-O {[%clk 0:02:36]} 14. f4 {[%clk 0:01:54]}  exf4 {[%clk 0:02:31]} 15. Bxf4 {[%clk 0:01:52]}  Nc5 {[%clk 0:02:30]} 16. Qf3 {[%clk 0:01:41]}  Nxb3 {[%clk 0:02:25]} 17. Qxb3 {[%clk 0:01:38]}  Nd7 {[%clk 0:02:24]} 18. Qh3 {[%clk 0:01:32]}  Nc5 {[%clk 0:02:20]} 19. c3 {[%clk 0:01:31]}  Bg5 {[%clk 0:02:18]} 20. Bd1 {[%clk 0:01:11]}  Bxf4 {[%clk 0:02:17]} 21. Rxf4 {[%clk 0:01:12]}  Qe7 {[%clk 0:02:07]} 22. Bc2 {[%clk 0:01:08]}  g6 {[%clk 0:02:06]} 23. Raf1 {[%clk 0:01:04]}  f5 {[%clk 0:02:06]} 24. Qf3 {[%clk 0:00:52]}  Nd7 {[%clk 0:02:01]} 25. Qg3 {[%clk 0:00:46]}  Kh8 {[%clk 0:01:57]} 26. h4 {[%clk 0:00:43]}  Ne5 {[%clk 0:01:56]} 27. h5 {[%clk 0:00:41]}  Rac8 {[%clk 0:01:52]} 28. hxg6 {[%clk 0:00:37]}  hxg6 {[%clk 0:01:47]} 29. Rh4+ {[%clk 0:00:35]}  Kg7 {[%clk 0:01:33]} 30. Bxf5 {[%clk 0:00:34]}  Rcd8 {[%clk 0:01:30]} 31. Be6 {[%clk 0:00:20]}  Rxf1+ {[%clk 0:01:27]} 32. Kxf1 {[%clk 0:00:21]}  Rf8+ {[%clk 0:01:25]} 33. Rf4 {[%clk 0:00:21]}  Rxf4+ {[%clk 0:01:24]} 34. Qxf4 {[%clk 0:00:22]}  g5 {[%clk 0:01:22]} 35. Qf5 {[%clk 0:00:22]}  Qf6 {[%clk 0:01:22]} 36. g4 {[%clk 0:00:21]}  Nd3 {[%clk 0:01:17]} 37. b3 {[%clk 0:00:10]}  Nc5 {[%clk 0:01:13]} 38. b4 {[%clk 0:00:08]}  Nxa4 {[%clk 0:01:12]} 39. bxa5 {[%clk 0:00:08]}  bxa5 {[%clk 0:01:11]} 40. Ke2 {[%clk 0:00:08]}  Nxc3+ {[%clk 0:01:11]} 41. Kd3 {[%clk 0:00:08]}  Nb5 {[%clk 0:01:07]} 42. Kc4 {[%clk 0:00:04]}  Nc7 {[%clk 0:01:05]} 43. Qc2 {[%clk 0:00:00]}  Qf4+ {[%clk 0:01:01]} 0-1

[Event "December 5 Late 2023"]
[Site "https://www.chess.com"]
[Date "2023.12.05"]
[Round "6"]
[White "Al-Saffar, Araz Basim Mohammed S"]
[Black "Teumer, Joerg, Dr."]
[Result "1/2-1/2"]
[Board "128"]
[TimeControl "180+1"]
[WhiteFideId "4801040"]
[BlackFideId "4643526"]
[WhiteElo "2383"]
[BlackElo "2120"]
[WhiteTeam "IRQ"]
[BlackTeam "GER"]
[WhiteClock "0:00:27"]
[BlackClock "0:00:23"]

1. d4 {[%clk 0:02:51]}  Nf6 {[%clk 0:02:59]} 2. c3 {[%clk 0:02:52]}  e6 {[%clk 0:02:50]} 3. Nf3 {[%clk 0:02:53]}  b6 {[%clk 0:02:49]} 4. Bg5 {[%clk 0:02:53]}  Be7 {[%clk 0:02:47]} 5. Nbd2 {[%clk 0:02:52]}  Bb7 {[%clk 0:02:47]} 6. e3 {[%clk 0:02:51]}  Ne4 {[%clk 0:02:43]} 7. Bxe7 {[%clk 0:02:48]}  Qxe7 {[%clk 0:02:43]} 8. Bd3 {[%clk 0:02:49]}  f5 {[%clk 0:02:39]} 9. Qc2 {[%clk 0:02:43]}  Nxd2 {[%clk 0:02:35]} 10. Qxd2 {[%clk 0:02:41]}  O-O {[%clk 0:02:28]} 11. O-O-O {[%clk 0:02:39]}  d6 {[%clk 0:02:25]} 12. Qc2 {[%clk 0:02:38]}  Nd7 {[%clk 0:02:08]} 13. e4 {[%clk 0:02:36]}  fxe4 {[%clk 0:02:03]} 14. Bxe4 {[%clk 0:02:37]}  Bxe4 {[%clk 0:02:02]} 15. Qxe4 {[%clk 0:02:26]}  Nf6 {[%clk 0:02:02]} 16. Qe2 {[%clk 0:02:20]}  Rae8 {[%clk 0:01:57]} 17. Rde1 {[%clk 0:02:14]}  Qd7 {[%clk 0:01:56]} 18. h3 {[%clk 0:02:07]}  c5 {[%clk 0:01:52]} 19. Rhf1 {[%clk 0:01:59]}  cxd4 {[%clk 0:01:51]} 20. Nxd4 {[%clk 0:01:57]}  e5 {[%clk 0:01:46]} 21. Nc2 {[%clk 0:01:55]}  Qa4 {[%clk 0:01:32]} 22. Kb1 {[%clk 0:01:54]}  Nd5 {[%clk 0:01:22]} 23. Qe4 {[%clk 0:01:49]}  Qxe4 {[%clk 0:01:20]} 24. Rxe4 {[%clk 0:01:50]}  Rf4 {[%clk 0:01:18]} 25. Rxf4 {[%clk 0:01:48]}  Nxf4 {[%clk 0:01:18]} 26. Ne3 {[%clk 0:01:45]}  g6 {[%clk 0:01:13]} 27. h4 {[%clk 0:01:41]}  Rd8 {[%clk 0:01:06]} 28. Kc2 {[%clk 0:01:40]}  Kg7 {[%clk 0:01:01]} 29. g3 {[%clk 0:01:39]}  Ne6 {[%clk 0:01:00]} 30. Rd1 {[%clk 0:01:38]}  Nc5 {[%clk 0:00:58]} 31. Nc4 {[%clk 0:01:09]}  Ne4 {[%clk 0:00:55]} 32. Nxe5 {[%clk 0:01:02]}  Nxf2 {[%clk 0:00:49]} 33. Nc6 {[%clk 0:01:02]}  Rd7 {[%clk 0:00:45]} 34. Rd4 {[%clk 0:00:57]}  d5 {[%clk 0:00:29]} 35. c4 {[%clk 0:00:47]}  Ne4 {[%clk 0:00:27]} 36. cxd5 {[%clk 0:00:45]}  Nxg3 {[%clk 0:00:27]} 37. Ne5 {[%clk 0:00:43]}  Rd6 {[%clk 0:00:25]} 38. Nc4 {[%clk 0:00:42]}  Rd7 {[%clk 0:00:24]} 39. Ne5 {[%clk 0:00:28]}  Rd6 {[%clk 0:00:23]} 40. Nc4 {[%clk 0:00:27]}  Rd7 {[%clk 0:00:23]} 41. Ne5 {[%clk 0:00:27]} 1/2-1/2

[Event "December 5 Late 2023"]
[Site "https://www.chess.com"]
[Date "2023.12.05"]
[Round "6"]
[White "Degtiarev, Evgeny"]
[Black "Calcada, Lucas Galvan"]
[Result "0-1"]
[Board "129"]
[TimeControl "180+1"]
[WhiteFideId "4149610"]
[BlackFideId "22746099"]
[WhiteElo "2343"]
[BlackElo "1994"]
[WhiteTeam "GER"]
[BlackTeam "BRA"]
[WhiteClock "0:00:00"]
[BlackClock "0:00:17"]

1. d4 {[%clk 0:03:00]}  Nf6 {[%clk 0:02:48]} 2. c4 {[%clk 0:03:01]}  e6 {[%clk 0:02:47]} 3. g3 {[%clk 0:03:00]}  d5 {[%clk 0:02:46]} 4. Nf3 {[%clk 0:03:00]}  Be7 {[%clk 0:02:42]} 5. Bg2 {[%clk 0:02:59]}  O-O {[%clk 0:02:40]} 6. O-O {[%clk 0:02:54]}  a6 {[%clk 0:02:37]} 7. b3 {[%clk 0:02:18]}  dxc4 {[%clk 0:02:38]} 8. bxc4 {[%clk 0:02:18]}  c6 {[%clk 0:02:33]} 9. a4 {[%clk 0:02:14]}  c5 {[%clk 0:02:29]} 10. Bb2 {[%clk 0:02:06]}  Nc6 {[%clk 0:02:28]} 11. e3 {[%clk 0:02:01]}  Qb6 {[%clk 0:02:25]} 12. Qe2 {[%clk 0:01:51]}  Rd8 {[%clk 0:02:23]} 13. Rd1 {[%clk 0:01:41]}  cxd4 {[%clk 0:02:00]} 14. exd4 {[%clk 0:01:40]}  Na5 {[%clk 0:01:56]} 15. d5 {[%clk 0:01:26]}  Qc7 {[%clk 0:01:53]} 16. Ne5 {[%clk 0:01:12]}  Bd6 {[%clk 0:01:37]} 17. Nd2 {[%clk 0:01:01]}  exd5 {[%clk 0:01:31]} 18. cxd5 {[%clk 0:00:59]}  Re8 {[%clk 0:01:30]} 19. f4 {[%clk 0:00:45]}  Qb6+ {[%clk 0:01:28]} 20. Kh1 {[%clk 0:00:42]}  Qxb2 {[%clk 0:01:27]} 21. Rab1 {[%clk 0:00:41]}  Qa3 {[%clk 0:01:23]} 22. Ne4 {[%clk 0:00:28]}  Nxe4 {[%clk 0:01:20]} 23. Bxe4 {[%clk 0:00:29]}  Qxa4 {[%clk 0:01:06]} 24. Bxh7+ {[%clk 0:00:26]}  Kf8 {[%clk 0:00:55]} 25. Rb6 {[%clk 0:00:11]}  Bxe5 {[%clk 0:00:47]} 26. fxe5 {[%clk 0:00:10]}  Rxe5 {[%clk 0:00:46]} 27. Qxe5 {[%clk 0:00:07]}  Qxd1+ {[%clk 0:00:45]} 28. Kg2 {[%clk 0:00:08]}  Qd2+ {[%clk 0:00:41]} 29. Kg1 {[%clk 0:00:07]}  Bh3 {[%clk 0:00:38]} 30. Qd6+ {[%clk 0:00:06]}  Ke8 {[%clk 0:00:36]} 31. Qe5+ {[%clk 0:00:04]}  Kf8 {[%clk 0:00:25]} 32. Qd6+ {[%clk 0:00:03]}  Ke8 {[%clk 0:00:22]} 33. Qe5+ {[%clk 0:00:00]}  Kd8 {[%clk 0:00:17]} 0-1

[Event "December 5 Late 2023"]
[Site "https://www.chess.com"]
[Date "2023.12.05"]
[Round "6"]
[White "Gutierrez Olivares, Daniel"]
[Black "Petersson, Kjell"]
[Result "1-0"]
[Board "132"]
[TimeControl "180+1"]
[WhiteFideId "2264005"]
[BlackFideId "1705148"]
[WhiteElo "2487"]
[BlackElo "2171"]
[WhiteTeam "ESP"]
[BlackTeam "SWE"]
[WhiteClock "0:01:40"]
[BlackClock "0:00:59"]

1. Nf3 {[%clk 0:03:00]}  f5 {[%clk 0:02:59]} 2. d3 {[%clk 0:03:00]}  Nc6 {[%clk 0:02:56]} 3. e4 {[%clk 0:02:59]}  e5 {[%clk 0:02:57]} 4. c4 {[%clk 0:02:50]}  Nf6 {[%clk 0:02:54]} 5. Nc3 {[%clk 0:02:49]}  Bb4 {[%clk 0:02:54]} 6. exf5 {[%clk 0:02:39]}  d5 {[%clk 0:02:42]} 7. Be2 {[%clk 0:02:22]}  d4 {[%clk 0:02:37]} 8. a3 {[%clk 0:02:22]}  Ba5 {[%clk 0:02:24]} 9. b4 {[%clk 0:02:22]}  Nxb4 {[%clk 0:02:24]} 10. axb4 {[%clk 0:02:22]}  dxc3 {[%clk 0:02:07]} 11. Qa4+ {[%clk 0:02:16]}  Bd7 {[%clk 0:01:56]} 12. Qxa5 {[%clk 0:02:15]}  O-O {[%clk 0:01:46]} 13. O-O {[%clk 0:02:09]}  e4 {[%clk 0:01:36]} 14. dxe4 {[%clk 0:02:05]}  Nxe4 {[%clk 0:01:36]} 15. Qd5+ {[%clk 0:02:05]}  Kh8 {[%clk 0:01:31]} 16. Qxe4 {[%clk 0:02:05]}  Bxf5 {[%clk 0:01:32]} 17. Qd4 {[%clk 0:02:02]}  Qe8 {[%clk 0:01:29]} 18. Re1 {[%clk 0:01:55]}  c2 {[%clk 0:01:16]} 19. Bf4 {[%clk 0:01:49]}  Rd8 {[%clk 0:01:11]} 20. Qc3 {[%clk 0:01:44]}  Qxe2 {[%clk 0:01:07]} 21. Rxe2 {[%clk 0:01:40]}  Rd1+ {[%clk 0:00:59]} 22. Re1 {[%clk 0:01:40]} 1-0

[Event "December 5 Late 2023"]
[Site "https://www.chess.com"]
[Date "2023.12.05"]
[Round "6"]
[White "Negron Lizarazo, Juan Sebastian"]
[Black "Kappeler, Kaspar"]
[Result "0-1"]
[Board "136"]
[TimeControl "180+1"]
[WhiteFideId "3936910"]
[BlackFideId "1309072"]
[WhiteElo "2094"]
[BlackElo "2310"]
[WhiteTeam "COL"]
[BlackTeam "SUI"]
[WhiteClock "0:00:00"]
[BlackClock "0:00:11"]

1. e4 {[%clk 0:03:00]}  c5 {[%clk 0:02:58]} 2. Nc3 {[%clk 0:02:58]}  e6 {[%clk 0:02:57]} 3. g3 {[%clk 0:02:56]}  Nc6 {[%clk 0:02:56]} 4. Bg2 {[%clk 0:02:56]}  Nge7 {[%clk 0:02:53]} 5. d3 {[%clk 0:02:55]}  d6 {[%clk 0:02:52]} 6. Be3 {[%clk 0:02:54]}  g6 {[%clk 0:02:48]} 7. Qd2 {[%clk 0:02:53]}  Nd4 {[%clk 0:02:46]} 8. Nf3 {[%clk 0:02:50]}  Bg7 {[%clk 0:02:39]} 9. O-O {[%clk 0:02:45]}  O-O {[%clk 0:02:35]} 10. Bh6 {[%clk 0:02:34]}  b6 {[%clk 0:02:24]} 11. Bxg7 {[%clk 0:02:27]}  Kxg7 {[%clk 0:02:24]} 12. Ne2 {[%clk 0:02:22]}  Nxf3+ {[%clk 0:02:13]} 13. Bxf3 {[%clk 0:02:20]}  Bb7 {[%clk 0:02:13]} 14. Bg2 {[%clk 0:02:15]}  Qd7 {[%clk 0:02:03]} 15. h3 {[%clk 0:02:08]}  d5 {[%clk 0:01:57]} 16. e5 {[%clk 0:01:49]}  d4 {[%clk 0:01:57]} 17. Qg5 {[%clk 0:01:42]}  Bxg2 {[%clk 0:01:52]} 18. Kxg2 {[%clk 0:01:29]}  Qd5+ {[%clk 0:01:44]} 19. Kh2 {[%clk 0:01:24]}  f6 {[%clk 0:01:26]} 20. exf6+ {[%clk 0:01:18]}  Rxf6 {[%clk 0:01:26]} 21. Qxd5 {[%clk 0:01:12]}  Nxd5 {[%clk 0:01:25]} 22. g4 {[%clk 0:01:04]}  Raf8 {[%clk 0:01:23]} 23. Kg2 {[%clk 0:01:01]}  g5 {[%clk 0:01:20]} 24. Ng3 {[%clk 0:00:45]}  Nf4+ {[%clk 0:01:03]} 25. Kh2 {[%clk 0:00:40]}  Rh6 {[%clk 0:01:03]} 26. Nh5+ {[%clk 0:00:31]}  Nxh5 {[%clk 0:01:01]} 27. gxh5 {[%clk 0:00:32]}  Rxh5 {[%clk 0:01:00]} 28. Kg3 {[%clk 0:00:32]}  Rh4 {[%clk 0:00:55]} 29. Rae1 {[%clk 0:00:26]}  Rf6 {[%clk 0:00:53]} 30. Re5 {[%clk 0:00:22]}  h6 {[%clk 0:00:43]} 31. Rfe1 {[%clk 0:00:20]}  Rhf4 {[%clk 0:00:35]} 32. Rxe6 {[%clk 0:00:19]}  Rf3+ {[%clk 0:00:35]} 33. Kg2 {[%clk 0:00:15]}  Rxf2+ {[%clk 0:00:35]} 34. Kg1 {[%clk 0:00:15]}  Rxc2 {[%clk 0:00:24]} 35. Re7+ {[%clk 0:00:14]}  Kg6 {[%clk 0:00:24]} 36. Rxa7 {[%clk 0:00:14]}  Rxb2 {[%clk 0:00:24]} 37. Ree7 {[%clk 0:00:14]}  Rff2 {[%clk 0:00:20]} 38. Rg7+ {[%clk 0:00:14]}  Kh5 {[%clk 0:00:19]} 39. Rge7 {[%clk 0:00:11]}  Rg2+ {[%clk 0:00:18]} 40. Kh1 {[%clk 0:00:11]}  Rh2+ {[%clk 0:00:17]} 41. Kg1 {[%clk 0:00:12]}  Rhd2 {[%clk 0:00:16]} 42. Re1 {[%clk 0:00:11]}  Rg2+ {[%clk 0:00:15]} 43. Kh1 {[%clk 0:00:11]}  Rh2+ {[%clk 0:00:14]} 44. Kg1 {[%clk 0:00:12]}  Rbg2+ {[%clk 0:00:12]} 45. Kf1 {[%clk 0:00:12]}  Rf2+ {[%clk 0:00:12]} 46. Kg1 {[%clk 0:00:12]}  Rfg2+ {[%clk 0:00:12]} 47. Kf1 {[%clk 0:00:12]}  Rxa2 {[%clk 0:00:13]} 48. Rb7 {[%clk 0:00:09]}  Rab2 {[%clk 0:00:12]} 49. Kg1 {[%clk 0:00:08]}  Rxh3 {[%clk 0:00:12]} 50. Re6 {[%clk 0:00:06]}  Rxd3 {[%clk 0:00:11]} 51. Re1 {[%clk 0:00:02]}  Rg3+ {[%clk 0:00:10]} 52. Kf1 {[%clk 0:00:01]}  Rf3+ {[%clk 0:00:10]} 53. Kg1 {[%clk 0:00:01]}  Rc3 {[%clk 0:00:10]} 54. Kh1 {[%clk 0:00:00]}  d3 {[%clk 0:00:11]} 0-1